bitfinex/quotes_SOLUSD_20241021
["timestamp","ask_amount","ask_price","bid_price","bid_amount"]
[1729540220429,15.45589627,167.54,167.38,7.5067979]
[1729540220913,0.14951567,167.53,167.38,7.5067979]
[1729540221394,0.14951567,167.53,167.39,23.776884]
[1729540221703,0.14951567,167.53,167.4,20.0]
[1729540221902,0.14951567,167.53,167.41,23.776884]
[1729540222108,0.14951567,167.53,167.43,23.776884]
[1729540222417,0.14951567,167.53,167.45,23.776884]
[1729540222715,0.14951567,167.53,167.48,20.0]
[1729540223091,0.14951567,167.53,167.49,23.776884]
[1729540224921,0.14951567,167.53,167.49,23.75644497]
[1729540226704,0.14951567,167.53,167.43,6.3212]
[1729540226906,0.14951567,167.53,167.39,22.453]
[1729540227103,0.14951567,167.53,167.39,22.53272237]
[1729540227302,0.14951567,167.53,167.39,30.13952027]
[1729540227624,0.14951567,167.53,167.4,7.5067979]
[1729540228005,0.14951567,167.53,167.41,20.0]
[1729540228615,0.14951567,167.53,167.44,23.776884]
[1729540228817,0.14951567,167.53,167.45,20.0]
[1729540229529,0.14951567,167.53,167.46,23.776884]
[1729540229713,0.14951567,167.53,167.49,20.0]
[1729540230106,0.14951567,167.53,167.49,19.97972631]
[1729540230316,0.14951567,167.53,167.46,31.2836819]
[1729540232109,0.14951567,167.53,167.47,20.0]
[1729540232325,0.14951567,167.53,167.49,20.0]
[1729540232914,0.14951567,167.53,167.5,23.776884]
[1729540235108,16.5044,167.59,167.52,23.75661031]
[1729540236612,6.5923,167.6,167.53,20.0]
[1729540236829,15.5203,167.63,167.53,20.0]
[1729540237340,15.5203,167.63,167.55,20.0]
[1729540237512,15.5203,167.63,167.56,23.776884]
[1729540238013,15.5203,167.66,167.57,20.0]
[1729540238530,15.5203,167.66,167.59,20.0]
[1729540238831,22.0951,167.7,167.61,20.0]
[1729540239307,22.0951,167.7,167.62,23.776884]
[1729540240434,22.0951,167.7,167.63,20.0]
[1729540242918,22.0951,167.7,167.64,23.776884]
[1729540243628,22.0951,167.7,167.62,20.0]
[1729540243823,22.0951,167.7,167.63,23.776884]
[1729540245528,22.0951,167.7,167.63,23.75650796]
[1729540245912,0.615015,167.73,167.64,20.0]
[1729540247335,0.615015,167.73,167.6,20.0]
[1729540247513,0.615015,167.73,167.6,21.19270391]
[1729540247718,0.615015,167.73,167.62,20.0]
[1729540247915,0.615015,167.73,167.62,28.69929246]
[1729540248819,0.615015,167.73,167.64,20.0]
[1729540249138,0.615015,167.73,167.66,20.0]
[1729540249520,0.615015,167.73,167.67,23.776884]
[1729540250619,21.8038,167.72,167.63,20.0]
[1729540251332,21.8038,167.72,167.62,20.0]
[1729540251931,21.8038,167.72,167.63,23.776884]
[1729540252116,21.8038,167.72,167.64,20.0]
[1729540255337,21.8038,167.72,167.65,23.776884]
[1729540255919,21.8038,167.72,167.65,23.7361949]
[1729540260235,21.8038,167.72,167.62,43.776884]
[1729540261059,21.8038,167.72,167.62,43.75665755]
[1729540265647,21.8038,167.72,167.62,23.776884]
[1729540266152,21.8038,167.72,167.62,31.26340427]
[1729540266940,21.8038,167.72,167.63,20.0]
[1729540268150,21.8038,167.72,167.64,23.776884]
[1729540271353,21.8038,167.72,167.64,23.75661425]
[1729540273132,21.8038,167.72,167.65,20.0]
[1729540273337,21.8038,167.72,167.66,23.776884]
[1729540276458,21.8038,167.72,167.55,0.17972237]
[1729540276649,21.8038,167.72,167.57,29.4960979]
[1729540276850,21.8038,167.72,167.58,78.77524047]
[1729540277151,21.8038,167.72,167.58,81.78497524]
[1729540277962,21.8038,167.72,167.58,10.51653267]
[1729540278159,21.8038,167.72,167.59,23.776884]
[1729540278657,21.8038,167.72,167.59,7.5067979]
[1729540278864,21.8038,167.72,167.6,23.776884]
[1729540281756,21.8038,167.72,167.6,23.73633662]
[1729540282148,21.8038,167.72,167.61,20.0]
[1729540282559,21.8038,167.72,167.61,27.5067979]
[1729540283842,21.8038,167.72,167.64,23.776884]
[1729540286764,21.8038,167.72,167.64,23.75661031]
[1729540288665,21.8038,167.72,167.61,3.0338724]
[1729540288972,21.8038,167.72,167.58,20.0]
[1729540289270,21.8038,167.72,167.6,20.0]
[1729540290361,21.8038,167.72,167.61,31.2836819]
[1729540291956,21.8038,167.72,167.58,23.0824596]
[1729540292467,21.8038,167.72,167.58,30.58779101]
[1729540292866,21.8038,167.72,167.6,20.0]
[1729540293175,21.8038,167.72,167.61,23.776884]
[1729540294254,21.8038,167.72,167.62,7.50533141]
[1729540294573,21.8038,167.72,167.63,23.776884]
[1729540294957,15.699,167.72,167.63,31.28221541]
[1729540295273,15.699,167.72,167.65,23.776884]
[1729540295665,0.615015,167.73,167.65,23.776884]
[1729540297177,0.615015,167.73,167.65,23.75654339]
[1729540298872,0.615015,167.73,167.61,0.1]
[1729540299078,0.615015,167.73,167.64,7.50533141]
[1729540300166,0.615015,167.73,167.65,23.776884]
[1729540300489,0.615015,167.73,167.65,43.776884]
[1729540302297,0.615015,167.73,167.65,43.75660637]
[1729540307396,0.615015,167.73,167.65,43.73633662]
[1729540307578,0.615015,167.73,167.64,0.3589]
[1729540309374,0.615015,167.73,167.64,24.135784]
[1729540309571,0.615015,167.73,167.65,20.0]
[1729540309899,15.0999,167.79,167.7,23.776884]
[1729540310070,15.0999,167.79,167.71,7.50964242]
[1729540310275,15.0999,167.79,167.72,23.776884]
[1729540310784,15.0999,167.79,167.74,23.776884]
[1729540311180,6.4323,167.81,167.74,23.776884]
[1729540312593,6.4323,167.81,167.74,23.75661031]
[1729540316093,6.4323,167.81,167.64,6.98292237]
[1729540316288,6.4323,167.81,167.66,24.36389797]
[1729540316597,6.4323,167.81,167.67,7.88129797]
[1729540317300,6.4323,167.81,167.68,43.776884]
[1729540317595,6.4323,167.81,167.7,43.776884]
[1729540317789,6.4323,167.81,167.7,43.75650796]
[1729540322994,6.4323,167.81,167.7,43.7362382]
[1729540323726,6.4323,167.81,167.7,51.61753617]
[1729540324197,6.4323,167.81,167.7,51.97643617]
[1729540327108,100.0,167.88,167.76,0.1]
[1729540327293,33.69813309,167.88,167.79,20.0]
[1729540327490,16.826015,167.9,167.83,20.0]
[1729540327690,16.826015,167.9,167.84,23.776884]
[1729540327997,16.826015,167.9,167.84,23.75661031]
[1729540328396,0.615015,167.9,167.84,23.75661031]
[1729540330098,0.615015,167.9,167.74,22.3171]
[1729540330303,0.615015,167.9,167.75,7.88129797]
[1729540331712,0.615015,167.9,167.76,20.0]
[1729540332015,0.615015,167.9,167.79,23.776884]
[1729540332708,15.9265,167.89,167.77,7.88129797]
[1729540333119,15.9265,167.89,167.77,7.86102428]
[1729540334107,15.9265,167.89,167.78,23.776884]
[1729540338427,15.9265,167.89,167.78,23.75661031]
[1729540340720,15.9265,167.89,167.78,31.63644407]
[1729540341609,15.9265,167.89,167.74,22.3171]
[1729540341610,15.0404,167.87,167.72,3.05309547]
[1729540341810,15.0404,167.87,167.66,16.1216]
[1729540341811,21.6634,167.83,167.66,16.1216]
[1729540342406,21.6634,167.83,167.66,24.00143376]
[1729540342609,21.6634,167.83,167.67,7.87983376]
[1729540343111,21.6634,167.83,167.68,20.1]
[1729540343328,21.6634,167.83,167.72,20.0]
[1729540343529,21.6634,167.83,167.73,31.65671776]
[1729540346115,21.6634,167.83,167.73,0.3589]
[1729540346928,15.0404,167.83,167.74,20.0]
[1729540347125,1.08,167.84,167.74,20.0]
[1729540347126,1.08,167.84,167.74,27.87983376]
[1729540347440,1.08,167.84,167.81,23.776884]
[1729540348128,16.358,167.87,167.81,23.776884]
[1729540348440,0.615015,167.9,167.83,23.776884]
[1729540348616,0.615015,167.9,167.82,20.0]
[1729540350623,0.615015,167.9,167.83,23.776884]
[1729540351225,0.615015,167.9,167.85,23.776884]
[1729540352646,0.615015,167.9,167.8,20.0]
[1729540352822,0.615015,167.9,167.83,23.776884]
[1729540353140,0.615015,167.9,167.84,20.0]
[1729540353634,0.615015,167.9,167.79,6.1491]
[1729540353838,0.615015,167.9,167.77,23.776884]
[1729540354338,0.615015,167.9,167.78,31.65671776]
[1729540355044,0.615015,167.9,167.8,23.776884]
[1729540355256,0.615015,167.9,167.84,23.776884]
[1729540357622,0.615015,167.9,167.84,31.65671776]
[1729540357856,0.615015,167.9,167.86,23.776884]
[1729540358929,0.615015,167.9,167.86,23.73633269]
[1729540359337,16.0273,167.95,167.86,23.73633269]
[1729540359338,16.0273,167.95,167.87,20.0]
[1729540360732,16.0342,167.98,167.87,20.0]
[1729540360940,16.0342,167.98,167.88,23.776884]
[1729540361351,16.0342,167.98,167.9,23.776884]
[1729540363451,10.0,168.0,167.89,23.776884]
[1729540363652,10.0,168.0,167.91,23.776884]
[1729540363944,10.0,168.0,167.93,23.776884]
[1729540364157,10.0,168.0,167.93,23.75654732]
[1729540365331,10.0,168.0,167.94,20.0]
[1729540366337,10.0,168.0,167.95,23.776884]
[1729540368247,10.0,168.0,167.95,24.135784]
[1729540369134,10.0,168.0,167.95,24.11550637]
[1729540373157,0.09407571,168.01,167.97,23.776884]
[1729540373334,0.09407571,168.01,167.96,23.776884]
[1729540373539,0.09407571,168.01,167.98,23.776884]
[1729540374241,0.09407571,168.01,167.98,23.75661425]
[1729540375437,0.09407571,168.01,167.96,16.3649]
[1729540375650,0.09407571,168.01,167.97,20.0]
[1729540376251,0.09407571,168.01,167.95,0.3589]
[1729540376760,0.09407571,168.01,167.97,23.776884]
[1729540377258,0.09407571,168.01,167.99,23.776884]
[1729540378469,25.0,168.02,168.01,23.776884]
[1729540378652,0.07368831,168.03,168.01,23.776884]
[1729540379160,0.615015,168.06,168.03,23.776884]
[1729540379360,15.9491,168.13,168.08,20.0]
[1729540381365,15.9491,168.13,168.06,23.776884]
[1729540382343,15.9491,168.13,167.99,7.87983376]
[1729540382565,15.9491,168.13,168.0,43.776884]
[1729540383442,15.9491,168.13,168.0,23.776884]
[1729540384653,15.9491,168.13,168.0,23.75687406]
[1729540385059,15.9491,168.13,168.01,20.0]
[1729540386653,15.9491,168.13,168.02,23.776884]
[1729540386851,15.9491,168.13,168.05,20.0]
[1729540387269,15.9491,168.13,168.0,23.75687406]
[1729540388548,15.9491,168.13,168.02,23.776884]
[1729540388855,15.9491,168.13,168.04,23.776884]
[1729540389058,15.9491,168.13,168.03,20.0]
[1729540389059,15.9491,168.13,168.06,23.776884]
[1729540389244,15.9491,168.13,168.07,20.0]
[1729540389748,16.5452,168.16,168.1,23.776884]
[1729540390139,16.5452,168.16,168.11,20.0]
[1729540390374,16.5452,168.16,168.1,23.776884]
[1729540390769,16.5452,168.16,168.11,20.0]
[1729540392149,16.5452,168.16,168.04,0.3589]
[1729540392762,16.5452,168.16,168.04,8.23873376]
[1729540393353,16.5452,168.16,168.07,23.776884]
[1729540394864,16.5452,168.16,168.07,23.75661031]
[1729540400072,16.5452,168.16,168.07,23.73633662]
[1729540402677,16.5452,168.16,168.05,23.776884]
[1729540402853,22.5922,168.16,168.01,70.29865007]
[1729540403266,5.9472,168.15,168.01,70.29865007]
[1729540403573,21.619,168.16,168.0,16.3106]
[1729540403785,1.08,168.11,168.0,24.19043376]
[1729540403959,1.08,168.11,168.02,20.0]
[1729540404356,1.08,168.11,168.03,23.776884]
[1729540405099,1.08,168.11,168.05,23.776884]
[1729540405268,1.08,168.11,168.05,31.63644801]
[1729540405663,1.08,168.11,168.05,7.87983376]
[1729540405884,6.0813,168.09,167.98,81.13897389]
[1729540406132,6.0813,168.09,168.0,7.87983376]
[1729540408066,6.0813,168.09,168.01,23.776884]
[1729540408283,6.0813,168.09,168.03,23.776884]
[1729540408478,6.0813,168.09,168.04,7.87983376]
[1729540409893,6.0813,168.09,167.98,70.29865007]
[1729540409894,6.0813,168.09,167.97,23.0782076]
[1729540410073,6.0813,168.09,168.01,43.776884]
[1729540410274,6.0813,168.09,168.01,23.75661031]
[1729540410771,6.0813,168.09,168.02,27.87983376]
[1729540412378,16.4408,168.1,168.03,23.776884]
[1729540412588,1.08,168.11,168.05,23.776884]
[1729540413163,16.22488993,168.13,168.05,23.776884]
[1729540415160,9.84378993,168.13,168.07,23.776884]
[1729540415480,9.84378993,168.13,168.07,23.75661031]
[1729540417873,9.84378993,168.13,168.05,7.87983376]
[1729540418182,9.84378993,168.13,168.06,23.776884]
[1729540419965,9.84378993,168.13,168.02,0.3589]
[1729540420169,9.84378993,168.13,168.02,20.3589]
[1729540420566,9.84378993,168.13,168.02,20.33852396]
[1729540421176,9.84378993,168.13,168.03,23.776884]
[1729540421393,15.0324,168.14,168.02,20.33852396]
[1729540421394,15.0324,168.14,168.05,23.776884]
[1729540421591,15.0324,168.14,168.06,7.87983376]
[1729540421896,15.0324,168.14,168.07,23.776884]
[1729540424095,15.0324,168.14,168.05,23.776884]
[1729540424279,15.0324,168.14,168.07,23.776884]
[1729540425885,15.0324,168.14,168.07,23.75661424]
[1729540431105,15.0324,168.14,168.07,23.73633662]
[1729540432604,21.4283,168.17,168.08,20.0]
[1729540433286,21.4283,168.17,168.09,23.776884]
[1729540436094,21.4283,168.17,168.09,23.75661424]
[1729540441413,21.4283,168.17,168.09,23.73634055]
[1729540442925,21.4283,168.17,168.09,31.61617431]
[1729540443802,21.4283,168.17,168.11,23.776884]
[1729540446421,15.0472,168.17,168.11,23.75660638]
[1729540447496,15.0472,168.17,168.08,20.0]
[1729540447697,15.0472,168.17,168.07,20.0]
[1729540448493,15.0472,168.17,168.09,20.0]
[1729540448699,15.0472,168.17,168.1,23.776884]
[1729540451727,15.0472,168.17,168.1,23.75641741]
[1729540456025,15.0472,168.17,168.02,0.1]
[1729540456229,15.0472,168.17,168.1,0.33852396]
[1729540456712,15.0472,168.17,168.1,0.31824633]
[1729540460823,15.0472,168.17,168.1,8.19808009]
[1729540461008,15.0472,168.17,168.11,23.776884]
[1729540462048,6.3153,168.2,168.11,23.75658276]
[1729540462236,6.3153,168.2,168.12,20.0]
[1729540463939,6.3153,168.2,168.13,23.776884]
[1729540466569,23.13856304,168.21,168.13,23.776884]
[1729540467139,23.13856304,168.21,168.13,23.75662999]
[1729540467334,23.13856304,168.21,168.08,3.06488299]
[1729540467534,23.13856304,168.21,168.09,20.0]
[1729540467739,23.13856304,168.21,168.09,29.06901484]
[1729540468951,23.13856304,168.21,168.1,16.5241]
[1729540469145,6.79086304,168.21,168.15,20.0]
[1729540469340,6.79086304,168.21,168.17,23.776884]
[1729540469731,6.79086304,168.21,168.16,7.87983376]
[1729540470438,6.79086304,168.21,168.17,23.776884]
[1729540472147,6.79086304,168.21,168.17,23.75662212]
[1729540472549,6.79086304,168.21,168.11,1.28889283]
[1729540472550,6.79086304,168.21,168.11,21.28889283]
[1729540472752,6.79086304,168.21,168.14,20.0]
[1729540473056,6.79086304,168.21,168.1,16.4241]
[1729540473257,16.591,168.19,168.06,16.4241]
[1729540473752,1.08,168.17,168.06,16.4241]
[1729540474138,1.08,168.17,168.06,19.44441078]
[1729540474339,1.08,168.17,168.07,20.0]
[1729540474745,1.08,168.17,168.1,23.776884]
[1729540477353,1.08,168.17,168.1,23.75661031]
[1729540478558,1.08,168.17,168.1,24.07485664]
[1729540480966,1.08,168.17,168.1,0.31824633]
[1729540481261,16.591,168.19,168.12,20.0]
[1729540481839,16.591,168.19,168.13,23.776884]
[1729540482257,16.591,168.19,168.1,0.31824633]
[1729540482551,16.591,168.19,168.1,0.2979687]
[1729540482944,22.5369,168.19,168.1,0.2979687]
[1729540483152,6.323,168.18,168.1,0.2979687]
[1729540484964,5.9468,168.16,168.1,0.2979687]
[1729540485460,5.9473,168.15,168.1,0.2979687]
[1729540485659,5.9467,168.16,168.1,0.2979687]
[1729540486066,5.9473,168.15,168.1,0.2979687]
[1729540486443,5.9474,168.14,168.1,0.2979687]
[1729540486650,5.9467,168.16,168.1,0.2979687]
[1729540486863,21.5385,168.17,168.1,0.2979687]
[1729540487165,5.9467,168.16,168.1,0.2979687]
[1729540488054,5.9467,168.16,168.1,0.27593534]
[1729540489177,15.5921,168.17,168.1,0.27593534]
[1729540489470,5.947,168.16,168.1,0.27593534]
[1729540490163,15.5921,168.17,168.1,0.27593534]
[1729540490743,15.5921,168.17,168.11,23.776884]
[1729540491159,15.5921,168.17,168.1,0.27593534]
[1729540493257,15.5921,168.17,168.1,0.25565377]
[1729540493451,22.62616304,168.21,168.1,0.25565377]
[1729540495977,5.9457,168.19,168.1,0.25565377]
[1729540498155,28.57136304,168.21,168.1,0.25565377]
[1729540498367,28.57136304,168.21,168.1,0.23537615]
[1729540500275,28.57116304,168.21,168.1,0.23537615]
[1729540502157,22.62616304,168.21,168.1,0.23537615]
[1729540502460,0.1,168.18,168.1,0.23537615]
[1729540502664,1.08,168.13,168.1,0.23537615]
[1729540503654,1.08,168.13,168.1,0.21500798]
[1729540504157,22.502,168.17,168.1,0.21500798]
[1729540506479,28.4486,168.17,168.1,0.21500798]
[1729540506860,26.4486,168.17,168.1,0.21500798]
[1729540507060,1.08,168.12,168.1,0.21500798]
[1729540508757,1.08,168.12,168.1,0.19473035]
[1729540509688,20.502,168.17,168.1,0.19473035]
[1729540510889,26.4483,168.17,168.1,0.19473035]
[1729540511562,20.502,168.17,168.1,0.19473035]
[1729540512072,15.846,168.17,168.1,0.19473035]
[1729540513855,1.08,168.11,168.1,0.17445666]
[1729540514061,5.9477,168.14,168.1,0.17445666]
[1729540514366,5.9482,168.12,168.1,0.17445666]
[1729540515468,1.08,168.11,168.1,0.17445666]
[1729540515770,12.1412,168.09,167.99,6.21998325]
[1729540515980,6.192,168.09,167.99,6.21998325]
[1729540516974,12.1413,168.09,167.94,22.2861]
[1729540517172,12.1413,168.09,167.94,29.54387254]
[1729540517474,12.1413,168.09,167.94,28.50791974]
[1729540517671,5.9495,168.08,167.94,28.50791974]
[1729540517873,12.1412,168.09,167.95,23.776884]
[1729540518571,6.192,168.09,167.95,23.776884]
[1729540518764,17.5915,168.11,167.98,20.0]
[1729540519162,17.5915,168.11,168.01,23.776884]
[1729540520977,17.6915,168.11,167.95,23.776884]
[1729540521178,17.6915,168.11,167.97,23.776884]
[1729540521372,17.7915,168.11,167.95,23.776884]
[1729540521580,5.9488,168.1,167.95,23.776884]
[1729540521779,5.9495,168.09,167.95,23.776884]
[1729540522184,5.9495,168.08,167.94,28.50791974]
[1729540522690,5.9492,168.09,167.95,20.0]
[1729540523064,5.9495,168.09,167.95,20.0]
[1729540523262,5.9497,168.08,167.95,19.5]
[1729540523478,5.9496,168.08,167.95,19.5]
[1729540524186,5.9496,168.08,167.95,19.47972631]
[1729540524496,5.9496,168.08,167.96,23.776884]
[1729540524696,6.2004,168.07,167.95,19.47972631]
[1729540525002,16.2498,168.05,167.95,23.776884]
[1729540525476,16.2498,168.05,167.91,6.2232519]
[1729540525670,5.9512,168.04,167.91,6.2232519]
[1729540525894,5.9513,168.03,167.9,22.6799]
[1729540526144,5.9516,168.02,167.9,16.427]
[1729540526400,0.2,168.04,167.9,16.427]
[1729540526688,16.2498,168.05,167.9,16.427]
[1729540526997,16.2498,168.05,167.9,23.86881]
[1729540527195,16.2498,168.05,167.91,20.0]
[1729540527691,16.2498,168.05,167.95,20.0]
[1729540527899,16.2498,168.05,167.97,20.0]
[1729540528605,16.2498,168.05,167.99,20.0]
[1729540529394,16.2498,168.05,167.97,20.0]
[1729540530271,16.2498,168.05,167.95,20.0]
[1729540531197,16.2498,168.05,167.99,20.0]
[1729540531400,6.2004,168.07,168.0,23.776884]
[1729540531601,15.4522,168.09,168.01,20.0]
[1729540531890,15.4522,168.09,168.02,23.776884]
[1729540532091,7.3884,168.11,168.03,20.0]
[1729540532298,1.08,168.11,168.03,20.0]
[1729540532511,1.08,168.11,168.04,23.776884]
[1729540532676,1.08,168.11,168.05,20.0]
[1729540533224,1.08,168.11,167.99,20.0]
[1729540533494,5.949,168.1,168.01,20.0]
[1729540533701,5.9493,168.09,167.98,15.4577]
[1729540533877,5.9499,168.07,167.99,20.0]
[1729540534082,21.2418,168.06,167.94,22.1867]
[1729540534292,15.2916,168.06,167.94,22.1867]
[1729540534503,15.2916,168.06,167.94,29.58785633]
[1729540535312,15.2916,168.06,167.95,23.776884]
[1729540535515,15.2916,168.06,167.97,23.776884]
[1729540535886,15.2916,168.06,167.96,20.0]
[1729540536107,15.2916,168.06,167.94,29.58785633]
[1729540536108,15.2916,168.06,167.94,22.14604633]
[1729540536413,21.2418,168.06,167.94,15.5794]
[1729540537109,5.9506,168.05,167.94,15.5794]
[1729540537422,5.9506,168.05,167.9,20.0]
[1729540538308,5.9506,168.05,167.94,20.0]
[1729540538909,5.951,168.04,167.93,23.776884]
[1729540539297,5.9523,168.01,167.89,27.893625]
[1729540539511,5.9523,168.01,167.89,21.6704]
[1729540539706,5.9523,168.01,167.89,21.65010662]
[1729540539926,0.2,168.0,167.85,12.7242773]
[1729540540112,21.8489,168.02,167.85,12.7242773]
[1729540540510,21.8489,168.02,167.86,7.44181]
[1729540541326,6.4306,168.06,167.89,6.1305]
[1729540541522,6.4306,168.06,167.91,0.1]
[1729540541829,16.1716,168.07,167.96,23.776884]
[1729540542028,16.1716,168.07,167.99,20.0]
[1729540544525,22.1215,168.07,167.97,20.0]
[1729540544932,22.1215,168.07,167.97,19.97975387]
[1729540546620,5.9503,168.06,167.97,19.97975387]
[1729540546818,5.9508,168.05,167.92,15.867]
[1729540547022,5.9509,168.05,167.92,15.867]
[1729540547219,5.9509,168.04,167.89,6.1305]
[1729540547630,5.9513,168.03,167.89,6.1305]
[1729540548331,16.5098,168.02,167.9,20.0]
[1729540548729,5.9526,168.0,167.88,16.5423]
[1729540549122,22.4617,168.02,167.88,16.5423]
[1729540549823,22.4617,168.02,167.89,43.776884]
[1729540550024,22.4617,168.02,167.89,43.75661031]
[1729540550529,5.952,168.01,167.89,43.75661031]
[1729540550750,5.9526,168.0,167.89,43.75661031]
[1729540550914,5.9528,167.99,167.86,6.2248765]
[1729540551122,5.9528,167.99,167.85,6.3384]
[1729540551515,5.9531,167.98,167.85,6.3384]
[1729540552142,12.2971,167.98,167.86,20.0]
[1729540552336,12.2971,167.98,167.88,20.0]
[1729540553335,12.2971,167.98,167.85,6.3384]
[1729540553540,0.1,167.95,167.84,6.22566936]
[1729540553842,5.9555,167.92,167.81,6.5061]
[1729540554215,5.9555,167.92,167.8,15.2761]
[1729540554536,6.319,167.91,167.8,15.2761]
[1729540555232,6.319,167.91,167.8,15.25582237]
[1729540555426,6.319,167.91,167.81,23.776884]
[1729540555630,6.319,167.91,167.82,20.0]
[1729540556215,5.9559,167.9,167.77,6.22804171]
[1729540556937,16.4241,167.89,167.77,6.22804171]
[1729540557236,16.4241,167.89,167.75,6.2291886]
[1729540558116,16.4241,167.89,167.76,16.5231]
[1729540558314,16.4241,167.89,167.78,20.0]
[1729540558529,16.4241,167.89,167.79,23.776884]
[1729540558723,16.4241,167.89,167.82,20.0]
[1729540559024,16.4241,167.89,167.81,23.776884]
[1729540559334,16.4241,167.89,167.82,20.0]
[1729540559642,16.4241,167.89,167.81,23.776884]
[1729540559819,16.4241,167.89,167.82,20.0]
[1729540561121,16.4241,167.89,167.79,20.0]
[1729540561321,16.4241,167.89,167.76,16.5231]
[1729540561322,16.4241,167.89,167.81,20.0]
[1729540563421,16.4241,167.89,167.78,23.776884]
[1729540563723,16.4241,167.89,167.79,20.0]
[1729540564441,5.9569,167.87,167.81,0.3584]
[1729540564828,0.1,167.88,167.81,0.3584]
[1729540565140,6.3338,167.86,167.81,0.3584]
[1729540565341,6.4338,167.86,167.81,0.3584]
[1729540565522,5.9581,167.84,167.81,0.31764792]
[1729540565844,5.9587,167.83,167.81,0.31764792]
[1729540566142,5.9587,167.82,167.81,0.31764792]
[1729540566335,15.7964,167.85,167.81,0.31764792]
[1729540567540,6.3338,167.86,167.81,0.31764792]
[1729540567720,22.0341,167.9,167.81,0.31764792]
[1729540570661,22.0341,167.9,167.81,0.29735848]
[1729540572523,6.1891,167.94,167.81,0.29735848]
[1729540572725,6.1891,167.94,167.85,20.0]
[1729540573042,6.1891,167.94,167.87,20.0]
[1729540575749,6.1891,167.94,167.87,19.97965545]
[1729540580536,6.1891,167.94,167.87,19.97965545]
[1729540580929,6.1891,167.94,167.87,19.95937782]
[1729540586054,6.1891,167.94,167.87,20.23646261]
[1729540587345,12.1437,167.94,167.87,0.29735848]
[1729540588281,6.1891,167.94,167.87,0.29735848]
[1729540591243,6.1891,167.94,167.87,0.27705724]
[1729540596357,6.1891,167.94,167.87,0.25671662]
[1729540601579,6.1891,167.94,167.87,0.23644293]
[1729540605175,16.0105,167.96,167.87,0.23644293]
[1729540605672,16.0105,167.96,167.88,23.776884]
[1729540605883,16.0105,167.96,167.89,20.0]
[1729540606671,16.0105,167.96,167.87,0.23644293]
[1729540606874,16.0105,167.96,167.87,20.23644293]
[1729540607267,16.0105,167.96,167.87,20.0]
[1729540609176,6.1014,167.95,167.78,6.5244]
[1729540609360,1.08,167.89,167.78,6.5244]
[1729540609560,1.08,167.89,167.8,6.22726874]
[1729540609755,21.7798,167.88,167.8,6.22726874]
[1729540609961,21.7798,167.88,167.76,7.02868213]
[1729540610272,21.7798,167.88,167.77,6.22951173]
[1729540611881,21.7798,167.88,167.78,23.776884]
[1729540612178,21.7798,167.88,167.77,6.18896042]
[1729540612386,27.7366,167.88,167.77,6.18896042]
[1729540612585,27.7366,167.88,167.75,16.4966]
[1729540612767,27.7366,167.88,167.76,23.776884]
[1729540613872,27.7366,167.88,167.77,20.0]
[1729540614373,27.7366,167.88,167.79,20.0]
[1729540616063,27.7366,167.88,167.77,20.0]
[1729540616268,27.7366,167.88,167.79,20.0]
[1729540616485,27.7366,167.88,167.78,23.776884]
[1729540616787,27.7366,167.88,167.79,20.0]
[1729540617083,27.7366,167.88,167.78,23.776884]
[1729540617484,5.9581,167.84,167.71,1.037226]
[1729540617669,5.9581,167.84,167.7,15.4383]
[1729540617984,5.9573,167.86,167.7,15.4383]
[1729540618190,31.63978128,167.88,167.71,6.63868213]
[1729540618483,31.63978128,167.88,167.71,6.7184045]
[1729540618688,37.59638128,167.88,167.72,23.776884]